fUST/lending_fUST_20250414
["ID","MTS","AMOUNT","RATE_DAILY","PERIOD"]
[357942179,1744606243368,-500.0,0.00027397,2]
[357942181,1744606243377,-500.0,0.00027397,2]
[357942183,1744606243386,-500.0,0.00027397,2]
[357942185,1744606243396,-22.19100368,0.00027397,2]
[357942187,1744606243409,-477.80899632,0.00027397,2]
[357942190,1744606243419,-1677.41,0.00027397,2]
[357942192,1744606243428,-500.0,0.00027397,2]
[357942193,1744606243438,-1745.34,0.00027397,2]
[357942195,1744606243447,-500.0,0.00027397,2]
[357942198,1744606243457,-2223.34,0.00027397,2]
[357942200,1744606243468,-1289.56,0.00027397,2]
[357942202,1744606243477,-531.56,0.00027397,2]
[357942203,1744606243487,-500.0,0.00027397,2]
[357942204,1744606243496,-500.0,0.00027397,2]
[357942205,1744606243506,-500.0,0.00027397,2]
[357942206,1744606243516,-509.10973485,0.00027397,2]
[357942207,1744606243525,-500.0,0.00027397,2]
[357942208,1744606243534,-500.0,0.00027397,2]
[357942209,1744606243544,-646.66,0.00027397,2]
[357942210,1744606243554,-500.0,0.00027397,2]
[357942211,1744606243564,-500.0,0.00027397,2]
[357942212,1744606243576,-121.90818346,0.00027397,2]
[357942213,1744606243595,-3452.80181654,0.00027397,2]
[357942214,1744606243605,-500.0,0.00027397,2]
[357942215,1744606243615,-500.0,0.00027397,2]
[357942216,1744606243624,-500.0,0.00027397,2]
[357942218,1744606243633,-268.45308522,0.00027397,2]
[357942219,1744606243644,-500.0,0.00027397,2]
[357942221,1744606243653,-500.0,0.00027397,2]
[357942223,1744606243663,-500.0,0.00027397,2]
[357942225,1744606243672,-500.0,0.00027397,2]
[357942228,1744606243687,-508.77181787,0.00027397,2]
[357942230,1744606243696,-500.0,0.00027397,2]
[357942232,1744606243707,-500.0,0.00027397,2]
[357942234,1744606243718,-1277.71,0.00027397,2]
[357942236,1744606243729,-500.0,0.00027397,2]
[357942238,1744606243738,-156.44211748,0.00027397,2]
[357942240,1744606243748,-502.56404453,0.00027397,2]
[357942242,1744606243760,-1670.43,0.00027397,2]
[357942244,1744606243770,-500.0,0.00027397,2]
[357942246,1744606243779,-696.55,0.00027397,2]
[357942248,1744606243789,-500.0,0.00027397,2]
[357942250,1744606243799,-500.0,0.00027397,2]
[357942253,1744606243809,-500.0,0.00027397,2]
[357942254,1744606243818,-500.0,0.00027397,2]
[357942257,1744606243827,-500.0,0.00027397,2]
[357942258,1744606243837,-500.0,0.00027397,2]
[357942260,1744606243847,-500.0,0.00027397,2]
[357942262,1744606243856,-500.0,0.00027397,2]
[357942265,1744606243866,-500.0,0.00027397,2]
[357942266,1744606243876,-1220.36,0.00027397,2]
[357942269,1744606243886,-500.0,0.00027397,2]
[357942271,1744606243896,-1062.06,0.00027397,2]
[357942273,1744606243905,-500.0,0.00027397,2]
[357942275,1744606243915,-500.0,0.00027397,2]
[357942277,1744606243924,-500.0,0.00027397,2]
[357942279,1744606243934,-500.0,0.00027397,2]
[357942281,1744606243943,-546.46433823,0.00027397,2]
[357942283,1744606243952,-500.0,0.00027397,2]
[357942285,1744606243962,-500.0,0.00027397,5]
[357942287,1744606243973,-214.41,0.00029,2]
[357942289,1744606243982,-392.92182971,0.00029155,2]
[357942291,1744606243992,-587.0,0.00029558,2]
[357942293,1744606244001,-523.78741984,0.00030137,2]
[357942295,1744606244012,-1000.0,0.00031873,5]
[357942297,1744606244021,-1000.0,0.00031956,5]
[357942299,1744606244030,-823.0,0.00032168,3]
[357942301,1744606244040,-1000.0,0.00032877,5]
[357942303,1744606244050,-250.0,0.00032966,2]
[357942305,1744606244059,-1152.0,0.00035008,3]
[357942307,1744606244069,-1000.0,0.00035616,2]
[357942309,1744606244078,-195.9030571,0.00035793,4]
[357942311,1744606244088,-565.0530007,0.0003737,30]
[357942313,1744606244097,-565.0530007,0.0003737,30]
[357942315,1744606244107,-565.0530007,0.0003737,30]
[357942317,1744606244116,-565.0530007,0.0003737,30]
[357942319,1744606244126,-565.0530007,0.0003737,30]
[357942321,1744606244135,-570.319068,0.0003737,30]
[357942323,1744606244145,-151.0,0.00038,30]
[357942325,1744606244154,-500.0,0.00038,14]
[357942327,1744606244163,-151.0,0.00038086,30]
[357942330,1744606244182,-1613.0,0.00038098,3]
[357942333,1744606244194,-500.0,0.00038173,5]
[357942335,1744606244204,-667.38440216,0.0003818,3]
[357942337,1744606244218,-2041.52415195,0.0003818,3]
[357942339,1744606244228,-160.0,0.0003819,3]
[357942341,1744606244237,-1924.9328892,0.0003819,3]
[357942506,1744606245814,-3075.29990312,0.0003819,3]
[357942508,1744606245826,-7652.13637131,0.0003819,3]
[357942523,1744606245961,-892.17360687,0.0003819,3]
[357942525,1744606245971,-207.4,0.0003819,3]
[357942527,1744606245981,-3225.42639313,0.000382,120]
[357942529,1744606245994,-359.21695307,0.000382,120]
[357942530,1744606246006,-6095.55,0.000382,120]
[357942531,1744606246022,-35597.05861458,0.000382,120]
[357944011,1744607438125,-1000.0,0.00024855,2]
[357944013,1744607438136,-160.0,0.00025974,2]
[357944015,1744607438148,-151.49184115,0.00027297,2]
[357944017,1744607438158,-245.57614363,0.00027297,2]
[357944019,1744607438168,-1354.45427706,0.00027387,2]
[357944022,1744607438177,-300.0,0.00027395,2]
[357944023,1744607438188,-397.18997434,0.00027396,2]
[357944026,1744607438197,-500.0,0.00027396,2]
[357944027,1744607438207,-141.53827072,0.00027396,2]
[357944030,1744607438219,-358.46172928,0.00027396,2]
[357944032,1744607438229,-500.0,0.00027396,2]
[357944034,1744607438239,-500.0,0.00027396,2]
[357944036,1744607438248,-500.0,0.00027396,2]
[357944038,1744607438258,-500.0,0.00027396,2]
[357944040,1744607438268,-500.0,0.00027396,2]
[357944042,1744607438278,-500.0,0.00027396,2]
[357944044,1744607438287,-500.0,0.00027396,2]
[357944046,1744607438297,-337.79886457,0.00027396,2]
[357944048,1744607438307,-500.0,0.00027396,2]
[357944050,1744607438317,-500.0,0.00027396,2]
[357944052,1744607438327,-500.0,0.00027396,2]
[357944054,1744607438337,-500.0,0.00027396,2]
[357944056,1744607438347,-500.0,0.00027396,2]
[357944058,1744607438356,-500.0,0.00027396,2]
[357944060,1744607438366,-500.0,0.00027396,2]
[357944062,1744607438376,-500.0,0.00027396,2]
[357944064,1744607438385,-500.0,0.00027396,2]
[357944065,1744607438396,-486.53362152,0.00027396,2]
[357944067,1744607438406,-500.0,0.00027396,2]
[357944069,1744607438415,-283.72167013,0.00027396,2]
[357944071,1744607438425,-500.0,0.00027396,2]
[357944073,1744607438435,-500.0,0.00027396,2]
[357944075,1744607438445,-500.0,0.00027396,2]
[357944077,1744607438454,-500.0,0.00027396,2]
[357944080,1744607438464,-500.0,0.00027396,2]
[357944081,1744607438474,-198.04765167,0.00027396,2]
[357944083,1744607438483,-500.0,0.00027396,2]
[357944085,1744607438493,-500.0,0.00027396,2]
[357944087,1744607438503,-500.0,0.00027396,2]
[357944089,1744607438513,-500.0,0.00027396,2]
[357944091,1744607438522,-500.0,0.00027397,2]
[357944094,1744607438532,-500.0,0.00027397,2]
[357944095,1744607438541,-178.62,0.00027397,2]
[357944098,1744607438550,-632.20158488,0.00027397,2]
[357944100,1744607438560,-500.0,0.00027397,2]
[357944102,1744607438569,-404.04337865,0.00027397,2]
[357944104,1744607438579,-500.0,0.00027397,2]
[357944106,1744607438588,-638.03,0.00027397,2]
[357944107,1744607438598,-500.0,0.00027397,2]
[357944110,1744607438607,-500.0,0.00027397,2]
[357944111,1744607438617,-500.0,0.00027397,2]
[357944113,1744607438626,-500.0,0.00027397,2]
[357944116,1744607438636,-1500.0,0.00027397,2]
[357944117,1744607438645,-1850.13,0.00027397,2]
[357944120,1744607438655,-508.84903324,0.00027397,2]
[357944122,1744607438664,-618.31956525,0.00027397,2]
[357944124,1744607438673,-500.0,0.00027397,2]
[357944126,1744607438682,-208.63,0.00027397,2]
[357944128,1744607438692,-500.0,0.00027397,2]
[357944130,1744607438701,-530.20429721,0.00027397,2]
[357944132,1744607438711,-500.0,0.00027397,2]
[357944134,1744607438720,-300.89826961,0.00027397,2]
[357944136,1744607438730,-500.0,0.00027397,2]
[357944137,1744607438739,-500.0,0.00027397,2]
[357944138,1744607438749,-500.0,0.00027397,2]
[357944139,1744607438759,-191.28,0.00027397,2]
[357944140,1744607438768,-500.0,0.00027397,2]
[357944141,1744607438778,-500.0,0.00027397,2]
[357944142,1744607438787,-500.0,0.00027397,2]
[357944143,1744607438797,-191.82,0.00027397,2]
[357944144,1744607438806,-500.0,0.00027397,2]
[357944145,1744607438816,-500.0,0.00027397,2]
[357944146,1744607438826,-500.0,0.00027397,2]
[357944147,1744607438835,-500.0,0.00027397,2]
[357944148,1744607438845,-500.0,0.00027397,2]
[357944149,1744607438855,-500.0,0.00027397,2]
[357944150,1744607438864,-500.0,0.00027397,2]
[357944151,1744607438874,-500.0,0.00027397,2]
[357944152,1744607438883,-500.0,0.00027397,2]
[357944153,1744607438893,-500.0,0.00027397,2]
[357944154,1744607438903,-500.0,0.00027397,2]
[357944155,1744607438913,-500.0,0.00027397,2]
[357944156,1744607438922,-500.0,0.00027397,2]
[357944157,1744607438932,-511.69841112,0.00027397,2]
[357944158,1744607438941,-500.0,0.00027397,2]
[357944159,1744607438951,-151.0,0.00027397,2]
[357944160,1744607438960,-188.66,0.00027397,2]
[357944161,1744607438970,-419.24176539,0.00027397,2]
[357944162,1744607438979,-500.0,0.00027397,2]
[357944163,1744607438990,-500.0,0.00027397,2]
[357944164,1744607438999,-638.9,0.00027397,2]
[357944165,1744607439009,-500.0,0.00027397,2]
[357944166,1744607439018,-500.0,0.00027397,2]
[357944167,1744607439028,-500.0,0.00027397,2]
[357944169,1744607439038,-500.0,0.00027397,2]
[357944171,1744607439047,-500.0,0.00027397,2]
[357944173,1744607439057,-586.28,0.00027397,2]
[357944175,1744607439067,-500.0,0.00027397,2]
[357944177,1744607439080,-500.0,0.00027397,2]
[357944179,1744607439089,-280.27388581,0.00027397,2]
[357944181,1744607439099,-500.0,0.00027397,2]
[357944183,1744607439110,-500.0,0.00027397,2]
[357944185,1744607439120,-500.0,0.00027397,2]
[357944187,1744607439130,-500.0,0.00027397,2]
[357944189,1744607439139,-500.0,0.00027397,2]
[357944192,1744607439149,-500.0,0.00027397,2]
[357944194,1744607439160,-500.0,0.00027397,2]
[357944196,1744607439169,-532.79440622,0.00027397,2]
[357944198,1744607439178,-500.0,0.00027397,2]
[357944200,1744607439188,-500.0,0.00027397,2]
[357944202,1744607439198,-593.56869004,0.00027397,2]
[357944204,1744607439206,-500.0,0.00027397,2]
[357944206,1744607439216,-500.0,0.00027397,2]
[357944208,1744607439225,-508.42433776,0.00027397,2]
[357944209,1744607439234,-229.41106763,0.00027397,2]
[357944211,1744607439244,-151.49942851,0.00027397,2]
[357944214,1744607439253,-151.0,0.00027397,2]
[357944216,1744607439263,-151.0,0.00027397,2]
[357944218,1744607439273,-222.59937673,0.00027397,2]
[357944220,1744607439282,-500.0,0.00027397,2]
[357944222,1744607439291,-151.0,0.00027397,2]
[357944223,1744607439301,-151.40827892,0.00027397,2]
[357944225,1744607439310,-159.01526734,0.00027397,2]
[357944227,1744607439320,-500.0,0.00027397,2]
[357944229,1744607439329,-158.42,0.00027397,2]
[357944231,1744607439339,-529.29,0.00027397,2]
[357944234,1744607439348,-500.0,0.00027397,2]
[357944236,1744607439359,-500.0,0.00027397,2]
[357944238,1744607439368,-500.0,0.00027397,2]
[357944239,1744607439378,-500.0,0.00027397,2]
[357944242,1744607439388,-500.0,0.00027397,2]
[357944244,1744607439397,-1017.81,0.00027397,2]
[357944263,1744607439565,-546.19,0.00027397,2]
[357944265,1744607439575,-718.26,0.00027397,2]
[357944267,1744607439585,-500.0,0.00027397,2]
[357944269,1744607439595,-1945.82,0.00027397,2]
[357944271,1744607439604,-363.04328131,0.00027397,2]
[357944273,1744607439614,-500.0,0.00027397,2]
[357944275,1744607439623,-500.0,0.00027397,2]
[357944277,1744607439632,-526.07879738,0.00027397,2]
[357944279,1744607439642,-500.0,0.00027397,2]
[357944281,1744607439651,-500.0,0.00027397,2]
[357944284,1744607439661,-507.29980193,0.00027397,2]
[357944285,1744607439671,-500.0,0.00027397,2]
[357944286,1744607439680,-500.0,0.00027397,2]
[357944287,1744607439689,-500.0,0.00027397,2]
[357944288,1744607439698,-717.16,0.00027397,2]
[357944289,1744607439709,-1948.97,0.00027397,2]
[357944291,1744607439719,-514.32,0.00027397,2]
[357944293,1744607439728,-500.0,0.00027397,2]
[357944295,1744607439737,-500.0,0.00027397,2]
[357944299,1744607439747,-512.15028761,0.00027397,2]
[357944303,1744607439758,-500.0,0.00027397,2]
[357944305,1744607439768,-500.0,0.00027397,2]
[357944308,1744607439778,-500.0,0.00027397,2]
[357944310,1744607439787,-500.0,0.00027397,2]
[357944312,1744607439797,-500.0,0.00027397,2]
[357944313,1744607439806,-500.0,0.00027397,2]
[357944315,1744607439816,-500.0,0.00027397,2]
[357944317,1744607439825,-542.29389561,0.00027397,2]
[357944319,1744607439835,-500.0,0.00027397,2]
[357944321,1744607439844,-500.0,0.00027397,2]
[357944323,1744607439853,-500.0,0.00027397,2]
[357944325,1744607439863,-500.0,0.00027397,2]
[357944327,1744607439873,-500.0,0.00027397,2]
[357944329,1744607439882,-500.0,0.00027397,2]
[357944331,1744607439892,-930.86,0.00027397,2]
[357944333,1744607439902,-500.0,0.00027397,2]
[357944335,1744607439912,-152.89644024,0.00027397,2]
[357944337,1744607439922,-279.18,0.00027397,2]
[357944339,1744607439932,-151.0,0.00027397,2]
[357944341,1744607439942,-500.0,0.00027397,2]
[357944343,1744607439953,-151.0,0.00027397,2]
[357944345,1744607439963,-227.32273572,0.00027397,2]
[357944347,1744607439973,-500.0,0.00027397,2]
[357944349,1744607439984,-500.0,0.00027397,2]
[357944351,1744607439995,-151.0,0.00027397,2]
[357944353,1744607440005,-500.0,0.00027397,2]
[357944355,1744607440015,-151.0,0.00027397,2]
[357944357,1744607440025,-151.0,0.00027397,2]
[357944359,1744607440036,-151.0,0.00027397,2]
[357944361,1744607440046,-151.0,0.00027397,2]
[357944363,1744607440056,-155.08631248,0.00027397,2]
[357944365,1744607440070,-500.0,0.00027397,2]
[357944367,1744607440082,-500.0,0.00027397,2]
[357944369,1744607440092,-500.0,0.00027397,2]
[357944372,1744607440102,-500.0,0.00027397,2]
[357944373,1744607440112,-500.0,0.00027397,2]
[357944375,1744607440122,-613.93551228,0.00027397,2]
[357944377,1744607440132,-500.0,0.00027397,2]
[357944380,1744607440144,-500.0,0.00027397,2]
[357944381,1744607440154,-500.0,0.00027397,2]
[357944383,1744607440164,-381.24,0.00027397,2]
[357944385,1744607440180,-500.0,0.00027397,2]
[357944388,1744607440191,-500.0,0.00027397,2]
[357944390,1744607440200,-500.0,0.00027397,2]
[357944392,1744607440211,-529.01352372,0.00027397,2]
[357944394,1744607440221,-500.0,0.00027397,2]
[357944396,1744607440231,-500.0,0.00027397,2]
[357944398,1744607440241,-778.88,0.00027397,2]
[357944400,1744607440251,-500.0,0.00027397,2]
[357944402,1744607440261,-465.36760542,0.00027397,2]
[357944404,1744607440271,-1672.62,0.00027397,2]
[357944406,1744607440281,-500.0,0.00027397,2]
[357944408,1744607440291,-575.07,0.00027397,2]
[357944410,1744607440301,-500.0,0.00027397,2]
[357944412,1744607440316,-500.0,0.00027397,2]
[357944414,1744607440326,-1607.52,0.00027397,2]
[357944416,1744607440336,-500.0,0.00027397,2]
[357944418,1744607440345,-505.82418857,0.00027397,2]
[357944420,1744607440354,-1235.83,0.00027397,2]
[357944422,1744607440364,-500.0,0.00027397,2]
[357944424,1744607440373,-500.0,0.00027397,2]
[357944426,1744607440383,-3425.76,0.00027397,2]
[357944428,1744607440393,-500.0,0.00027397,2]
[357944430,1744607440403,-2130.7,0.00027397,2]
[357944432,1744607440413,-606.67413053,0.00027397,2]
[357944434,1744607440423,-500.0,0.00027397,2]
[357944436,1744607440432,-500.0,0.00027397,2]
[357944438,1744607440442,-500.0,0.00027397,2]
[357944440,1744607440452,-500.0,0.00027397,2]
[357944442,1744607440461,-500.0,0.00027397,2]
[357944444,1744607440471,-500.0,0.00027397,2]
[357944446,1744607440480,-624.77,0.00027397,2]
[357944448,1744607440490,-500.0,0.00027397,2]
[357944450,1744607440499,-667.53,0.00027397,2]
[357944452,1744607440509,-500.0,0.00027397,2]
[357944454,1744607440518,-1224.47,0.00027397,2]
[357944456,1744607440527,-245.64,0.00027397,2]
[357944458,1744607440537,-500.0,0.00027397,2]
[357944460,1744607440546,-1169.51,0.00027397,2]
[357944462,1744607440556,-1600.82,0.00027397,2]
[357944464,1744607440567,-500.0,0.00027397,2]
[357944466,1744607440577,-500.0,0.00027397,2]
[357944468,1744607440586,-500.0,0.00027397,5]
[357944470,1744607440595,-196.81599357,0.00027404,5]
[357944473,1744607440605,-500.0,0.00027404,5]
[357944475,1744607440614,-500.0,0.00027404,5]
[357944477,1744607440624,-500.0,0.00027404,5]
[357944479,1744607440633,-500.0,0.00027404,5]
[357944480,1744607440642,-151.0,0.00027452,2]
[357944482,1744607440651,-190.30864657,0.00027452,2]
[357944485,1744607440661,-199.12515392,0.00027452,2]
[357944487,1744607440672,-559.45328534,0.00027452,2]
[357944489,1744607440681,-151.0,0.00027452,2]
[357944491,1744607440691,-151.31303421,0.00027452,2]
[357944493,1744607440700,-204.1762011,0.000279,7]
[357944495,1744607440709,-312.45808972,0.00028,10]
[357944497,1744607440719,-204.17620102,0.00028991,8]
[357944499,1744607440728,-192.97,0.00029,2]
[357944501,1744607440737,-420.0,0.00029735,2]
[357944503,1744607440746,-192.8530322,0.0003,3]
[357944505,1744607440756,-204.17620102,0.00030082,9]
[357944507,1744607440765,-366.65119389,0.00030137,2]
[357944509,1744607440774,-204.17620102,0.00031173,9]
[357944511,1744607440783,-204.17620102,0.00032264,10]
[357944513,1744607440792,-587.0,0.00032275,3]
[357944515,1744607440801,-250.0,0.00032842,2]
[357944517,1744607440812,-1000.0,0.00032877,5]
[357944519,1744607440821,-1000.0,0.00032883,5]
[357944521,1744607440831,-1000.0,0.00032883,5]
[357944523,1744607440840,-204.17620102,0.00033355,11]
[357944525,1744607440850,-313.3899114,0.00034082,30]
[357944527,1744607440859,-1128.6117143,0.00034082,30]
[357944529,1744607440868,-175.44,0.00034306,14]
[357944531,1744607440878,-204.17620102,0.00034445,11]
[357944533,1744607440888,-1354.45427706,0.00034898,2]
[357944535,1744607440897,-10835.6342165,0.00034898,2]
[357944537,1744607440907,-40722.55443006,0.00034908,2]
[357944539,1744607440916,-3427.75092307,0.00034908,3]
[357944541,1744607440925,-44392.38067745,0.00034908,2]
[357944778,1744607443396,-500.0,0.00027397,2]
[357944779,1744607443406,-500.0,0.00027397,2]
[357944780,1744607443416,-500.0,0.00027397,2]
[357944781,1744607443425,-245.57614356,0.00029097,2]
[357944782,1744607443434,-35894.07152942,0.00034908,2]
[357945025,1744607446044,-507.24,0.00027397,2]
[357945028,1744607446054,-1152.93900002,0.00034908,2]
[357945208,1744607515746,909.0,0.00023,30]
[357945260,1744608632183,-417.22754796,0.00027195,2]
[357945261,1744608632193,-160.0,0.00027284,2]
[357945262,1744608632203,-1000.0,0.00027295,2]
[357945263,1744608632212,-184.18210767,0.00027296,2]
[357945264,1744608632221,-178.06390943,0.00027297,2]
[357945265,1744608632230,-160.0,0.00027357,2]
[357945266,1744608632240,-500.0,0.00027389,2]
[357945267,1744608632250,-500.0,0.00027389,2]
[357945268,1744608632259,-500.0,0.00027389,2]
[357945269,1744608632268,-500.0,0.00027389,2]
[357945270,1744608632278,-526.49455804,0.00027389,2]
[357945271,1744608632287,-404.54100124,0.00027389,2]
[357945272,1744608632297,-500.0,0.00027389,2]
[357945273,1744608632308,-500.0,0.00027389,2]
[357945286,1744608632474,-500.0,0.00027389,2]
[357945288,1744608632485,-427.20920038,0.00027389,2]
[357945290,1744608632496,-500.0,0.00027389,2]
[357945292,1744608632505,-500.0,0.00027389,2]
[357945294,1744608632516,-500.0,0.00027389,2]
[357945296,1744608632527,-500.0,0.00027389,2]
[357945298,1744608632536,-198.65336215,0.00027389,2]
[357945300,1744608632548,-500.0,0.00027389,2]
[357945302,1744608632558,-440.80864912,0.00027389,2]
[357945304,1744608632567,-300.0,0.0002739,2]
[357945306,1744608632577,-300.0,0.0002739,2]
[357945308,1744608632586,-20647.37945349,0.0002739,2]
[357945310,1744608632596,-436.7109023,0.00027396,2]
[357945312,1744608632605,-190.47674474,0.00027396,2]
[357945314,1744608632615,-500.0,0.00027397,2]
[357945316,1744608632625,-498.02161399,0.00027397,2]
[357945318,1744608632635,-500.0,0.00027397,2]
[357945320,1744608632644,-500.0,0.00027397,2]
[357945322,1744608632654,-500.0,0.00027397,2]
[357945324,1744608632663,-500.0,0.00027397,2]
[357945326,1744608632673,-282.64653018,0.00027397,2]
[357945328,1744608632683,-1773.05,0.00027397,2]
[357945330,1744608632692,-500.0,0.00027397,2]
[357945332,1744608632702,-500.0,0.00027397,2]
[357945334,1744608632712,-500.0,0.00027397,2]
[357945336,1744608632721,-500.0,0.00027397,2]
[357945338,1744608632731,-500.0,0.00027397,2]
[357945341,1744608632741,-540.08554559,0.00027397,2]
[357945342,1744608632751,-500.0,0.00027397,2]
[357945344,1744608632760,-688.34,0.00027397,2]
[357945345,1744608632770,-500.0,0.00027397,2]
[357945347,1744608632781,-500.0,0.00027397,2]
[357945348,1744608632791,-594.16,0.00027397,2]
[357945349,1744608632800,-500.0,0.00027397,2]
[357945350,1744608632810,-500.0,0.00027397,2]
[357945351,1744608632819,-500.0,0.00027397,2]
[357945352,1744608632829,-500.0,0.00027397,2]
[357945353,1744608632838,-500.0,0.00027397,2]
[357945354,1744608632848,-500.0,0.00027397,2]
[357945355,1744608632858,-500.0,0.00027397,2]
[357945356,1744608632869,-399.45,0.00027397,2]
[357945357,1744608632880,-500.0,0.00027397,2]
[357945358,1744608632890,-500.0,0.00027397,2]
[357945359,1744608632899,-500.0,0.00027397,2]
[357945360,1744608632909,-161.16626458,0.00027397,2]
[357945361,1744608632919,-612.12,0.00027397,2]
[357945362,1744608632928,-500.0,0.00027397,2]
[357945363,1744608632938,-500.0,0.00027397,2]
[357945364,1744608632947,-500.0,0.00027397,2]
[357945365,1744608632957,-186.66,0.00027397,2]
[357945366,1744608632966,-500.0,0.00027397,2]
[357945367,1744608632975,-500.0,0.00027397,2]
[357945368,1744608632985,-500.0,0.00027397,2]
[357945369,1744608632994,-500.0,0.00027397,2]
[357945370,1744608633004,-500.0,0.00027397,2]
[357945371,1744608633013,-206.16,0.00027397,2]
[357945372,1744608633023,-500.0,0.00027397,2]
[357945373,1744608633033,-500.0,0.00027397,2]
[357945374,1744608633043,-500.0,0.00027397,2]
[357945375,1744608633052,-270.60545267,0.00027397,2]
[357945376,1744608633062,-500.0,0.00027397,2]
[357945377,1744608633072,-500.0,0.00027397,2]
[357945378,1744608633083,-500.0,0.00027397,2]
[357945379,1744608633093,-500.0,0.00027397,2]
[357945380,1744608633103,-500.0,0.00027397,2]
[357945381,1744608633114,-523.43,0.00027397,2]
[357945382,1744608633124,-975.4,0.00027397,2]
[357945383,1744608633134,-500.0,0.00027397,2]
[357945384,1744608633144,-242.36,0.00027397,2]
[357945385,1744608633154,-1864.74,0.00027397,2]
[357945386,1744608633164,-500.0,0.00027397,2]
[357945387,1744608633174,-500.0,0.00027397,2]
[357945388,1744608633184,-500.0,0.00027397,2]
[357945389,1744608633193,-296.619219,0.00027397,2]
[357945390,1744608633204,-500.0,0.00027397,2]
[357945391,1744608633214,-152.85977203,0.00027397,2]
[357945392,1744608633224,-152.10586247,0.00027397,2]
[357945393,1744608633233,-500.0,0.00027397,2]
[357945394,1744608633243,-151.0,0.00027397,2]
[357945395,1744608633252,-500.0,0.00027397,2]
[357945396,1744608633262,-151.92584023,0.00027397,2]
[357945397,1744608633272,-687.28,0.00027397,2]
[357945398,1744608633282,-151.0,0.00027397,2]
[357945399,1744608633291,-151.0,0.00027397,2]
[357945400,1744608633302,-152.81593256,0.00027397,2]
[357945401,1744608633312,-1867.76,0.00027397,2]
[357945402,1744608633321,-498.59516035,0.00027397,2]
[357945403,1744608633331,-500.0,0.00027397,2]
[357945404,1744608633341,-346.64,0.00027397,2]
[357945405,1744608633351,-500.0,0.00027397,2]
[357945406,1744608633360,-500.0,0.00027397,2]
[357945407,1744608633369,-500.0,0.00027397,2]
[357945408,1744608633379,-500.0,0.00027397,2]
[357945409,1744608633388,-500.0,0.00027397,2]
[357945410,1744608633398,-500.0,0.00027397,2]
[357945411,1744608633407,-500.0,0.00027397,2]
[357945412,1744608633417,-237.71914746,0.00027397,2]
[357945413,1744608633427,-171.66,0.00027397,2]
[357945414,1744608633437,-500.0,0.00027397,2]
[357945415,1744608633451,-500.0,0.00027397,2]
[357945416,1744608633460,-500.0,0.00027397,2]
[357945417,1744608633470,-892.08,0.00027397,2]
[357945418,1744608633480,-500.0,0.00027397,2]
[357945419,1744608633490,-500.0,0.00027397,2]
[357945420,1744608633500,-500.0,0.00027397,2]
[357945421,1744608633509,-500.0,0.00027397,2]
[357945422,1744608633520,-176.25768259,0.00027397,2]
[357945423,1744608633530,-500.0,0.00027397,2]
[357945424,1744608633540,-500.0,0.00027397,2]
[357945425,1744608633550,-500.0,0.00027397,2]
[357945426,1744608633559,-223.50822771,0.00027397,2]
[357945427,1744608633570,-1602.92,0.00027397,2]